[Event "Frauenbundesliga 2021-22"]
[Site "Germany"]
[Date "2022.05.27"]
[Round "4.12"]
[White "Rosmait, Emily"]
[Black "Bulmaga, Irina"]
[Result "0-1"]
[ECO "C60"]
[WhiteElo "1896"]
[BlackElo "2397"]
[Annotator "TA"]
[PlyCount "140"]
[EventDate "2021.11.26"]
[EventType "team-tourn"]
[EventCountry "GER"]
[SourceTitle "playchess.com"]
[Source "ChessBase"]
[SourceQuality "1"]
[WhiteTeam "Harksheide"]
[BlackTeam "Schwaebisch Hall"]
[TimeControl "40/5400+30:1800+30"]

{[%evp 15,140,18,22,20,22,16,34,29,36,4,11,19,55,50,47,1,15,0,0,0,18,25,52,16,70,0,0,-7,7,4,14,0,0,-21,-13,-19,-14,-12,19,-18,0,0,76,-84,-66,-70,-64,-331,-352,-343,-343,-385,-335,-332,-318,-318,-325,-369,-365,-390,-394,-373,-329,-409,-391,-493,-488,-508,-500,-616,-611,-611,-497,-604,-602,-602,-602,-600,-596,-579,-564,-520,-500,-490,-459,-442,-429,-418,-358,-1066,-1033,-875,-861,-856,-850,-818,-793,-1013,-1008,-1016,-929,-979,-929,-762,-756,-722,-674,-1065,-1065,-4775,-4133,-4775,-4775,-4775,-4775,-5747,-5551,-5293,-3845,-1458,-1279,-2263,-1549,-29968,-6516,-29989,-29990]} 1. e4 {[%emt 0:00:02]} e5 {[%emt 0:00:07]} 2. Nf3 {[%emt 0:00:04]} Nc6 {[%emt 0:00:06]} 3. Bb5 {[%emt 0:00:05]} g6 {[%emt 0:00:08]} 4. O-O {[%emt 0:02:01]} Bg7 {[%emt 0:00:21]} 5. c3 {[%emt 0:00:25]} a6 {[%emt 0:00:25]} 6. Ba4 {[%emt 0:00:17]} d6 {[%emt 0:00:43]} 7. h3 {[%emt 0:01:03]} b5 {[%emt 0:01:47]} 8. Bc2 {[%emt 0:01:46]} Nf6 {[%emt 0:00:10]} 9. Re1 {[%emt 0:01:18] C60: Ruy Lopez: Unusual Black 3rd moves and 3...g6.} O-O {[%emt 0:00:21]} 10. d3 {[%emt 0:05:48]} Re8 {[%emt 0:01:20]} 11. Nbd2 {[%emt 0:00:56][%cal Bb1d2,Bd2f1,Bf1e3,Be3g4][%mdl 32] White is slightly better.} h6 {[%emt 0:00:17]} 12. Nf1 {[%emt 0:00:23]} d5 {[%emt 0:03:30]} 13. a4 {[%emt 0:11:55] [#] Black should prevent axb5.} Rb8 $146 {[%emt 0:03:54]} ({Predecessor:} 13... Be6 14. Ng3 b4 15. a5 dxe4 16. Nxe4 Nxe4 17. dxe4 Qxd1 18. Bxd1 bxc3 19. bxc3 Red8 {1-0 (38) Carlsen,M (2847)-Muzychuk,A (2535) chess24.com INT 2021}) 14. axb5 {[%emt 0:05:54]} axb5 {[%emt 0:00:13]} 15. exd5 {[%emt 0:02:50]} (15. Ng3 $14 {feels stronger.}) 15... Nxd5 $11 {[%emt 0:01:49]} 16. Ne3 {[%emt 0:05:45]} Nf4 {[%emt 0:08:14]} 17. Ng4 {[%emt 0:05:21][%cal Od3d4]} h5 {[%emt 0:06:12]} 18. Ngh2 {[%emt 0:02:37][%cal Od3d4]} Nd5 {[%emt 0:08:43]} 19. Bg5 {[%emt 0:07:24]} (19. Ng5 {looks sharper.} b4 20. Bd2 Bf5 21. Nhf3) 19... f6 {[%emt 0:02:53]} (19... Qd7 $11) 20. Be3 {[%emt 0:02:01]} ({Better is} 20. Bd2 $14) 20... Nxe3 {[%emt 0:02:09]} 21. fxe3 {[%emt 0:04:40]} Be6 {[%emt 0:07:48]} 22. Ra6 {[%emt 0:08:27]} Qd7 {[%emt 0:05:08]} 23. d4 {[%emt 0:03:30]} Bf7 {[%emt 0:00:46]} 24. e4 {[%emt 0:04:07]} exd4 {[%emt 0:01:07]} 25. Nxd4 {[%emt 0:02:59]} Ne5 {[%emt 0:05:59]} 26. Nhf3 {[%emt 0:00:53]} Rbd8 {[%emt 0:09:04]} 27. Qa1 {[%emt 0:02:45]} Nxf3+ {[%emt 0:03:17]} 28. Nxf3 {[%emt 0:00:53]} Qe7 {[%emt 0:06:15]} (28... c6 $11 {remains equal.}) 29. Ra7 $2 {[%emt 0:01:49]} (29. e5 $1 $16 {[%cal Re5e6] keeps the pressure on. Strongly threatening e6.} fxe5 30. Bxg6) 29... Qc5+ $17 {[%emt 0:00:30]} 30. Kh1 {[%emt 0:00:09]} Qf2 $36 {[%emt 0:01:10][%mdl 2048] Black is pushing. Black is more active.} 31. Nd4 {[%emt 0:02:30][%mdl 8192] Loses the game.} ({White has to play} 31. Bb1 $1 $15) 31... Rxd4 $19 {[%emt 0:10:09]} 32. cxd4 {[%emt 0:00:40]} Qxc2 {[%emt 0:00:06]} 33. Ra8 {[%emt 0:05:36]} Qc6 {[%emt 0:01:26]} 34. Rxe8+ {[%emt 0:01:23]} Qxe8 {[%emt 0:00:02]} (34... Bxe8 $2 {loses.} 35. Qc1 $19) 35. Qc1 {[%emt 0:02:40]} Qd7 {[%emt 0:00:29]} 36. Rd1 {[%emt 0:02:26]} Bb3 {[%emt 0:00:21]} 37. Rd3 {[%emt 0:00:49]} Bc4 {[%emt 0:00:07]} 38. Rd1 {[%emt 0:00:51]} Kh7 {[%emt 0:00:37]} 39. Qf4 {[%emt 0:01:06]} c6 {[%emt 0:00:50]} 40. Qf3 {[%emt 0:01:44]} f5 {[%emt 0:05:44]} 41. exf5 {[%emt 0:16:59]} Qxf5 {[%emt 0:00:11]} 42. Qe3 {[%emt 0:02:39]} Bd5 {[%emt 0:00:51]} 43. Kg1 {[%emt 0:05:09]} Qe4 {[%emt 0:01:30][%csl Gd5][%cal Re4g2]} 44. Qf2 {[%emt 0:02:44] [#]} Bf6 $1 {[%emt 0:00:45][%mdl 512]} 45. Rd2 {[%emt 0:03:12]} Bh4 {[%emt 0:01:05]} 46. Qe2 {[%emt 0:01:21]} Qxe2 {[%emt 0:00:09]} 47. Rxe2 {[%emt 0:00:02]} Bf6 {[%emt 0:00:17]} 48. Rd2 {[%emt 0:00:45]} Bc4 {[%emt 0:00:22]} 49. Kf2 {[%emt 0:00:58]} Bg5 {[%emt 0:00:13]} 50. Rd1 {[%emt 0:01:15]} Kg7 {[%emt 0:00:11]} 51. Ra1 {[%emt 0:00:44]} Kf6 {[%emt 0:00:20]} 52. g4 $2 {[%emt 0:01:58]} (52. Re1) 52... hxg4 {[%emt 0:00:22]} 53. hxg4 {[%emt 0:00:01]} Ke6 {[%emt 0:00:21]} 54. Re1+ {[%emt 0:00:21]} Kd6 {[%emt 0:00:10]} 55. Kf3 {[%emt 0:00:43]} Bd5+ {[%emt 0:00:15]} 56. Kg3 {[%emt 0:00:16]} Bf6 {[%emt 0:00:13]} 57. Rd1 {[%emt 0:00:20]} Bb3 {[%emt 0:00:11]} 58. Rd2 {[%emt 0:01:05]} g5 {[%emt 0:02:05]} 59. Kf3 {[%emt 0:00:15]} Be6 {[%emt 0:00:09]} 60. Ke4 {[%emt 0:01:12]} Bxg4 {[%emt 0:00:09]} 61. Rh2 {[%emt 0:00:21]} Ke6 {[%emt 0:00:36] [#] White must now prevent ...Bd1.} 62. Rh6 {[%emt 0:00:37]} Bf5+ {[%emt 0:00:07]} 63. Ke3 {[%emt 0:00:09]} Kf7 {[%emt 0:00:07]} 64. Rh1 {[%emt 0:00:46]} Be6 {[%emt 0:00:10] aiming for ...Kg6.} 65. Rh7+ {[%emt 0:00:38]} Bg7 {[%emt 0:00:03]} 66. Rh1 {[%emt 0:00:33]} Kg6 {[%emt 0:00:09]} 67. Ra1 {[%emt 0:00:22]} Bd5 {[%emt 0:00:16] ...g4 is the strong threat.} 68. Ra7 {[%emt 0:00:34]} g4 {[%emt 0:00:26][%cal Bg5g4,Bg4g3,Bg3g2][%mdl 32]} 69. Re7 {[%emt 0:00:38]} g3 {[%emt 0:00:11] ( -> ...g2)} 70. Ke2 {[%emt 0:00:27]} g2 {[%emt 0:00:09] Weighted Error Value: White=0.43/Black=0.14 (very precise)} 0-1

[Event "Frauenbundesliga 2021-22"]
[Site "Germany"]
[Date "2022.05.27"]
[Round "4.13"]
[White "Sliwicka, Alicja"]
[Black "Rogule, Laura"]
[Result "1/2-1/2"]
[ECO "B80"]
[WhiteElo "2273"]
[BlackElo "2297"]
[Annotator "TA"]
[PlyCount "76"]
[EventDate "2021.11.26"]
[EventType "team-tourn"]
[EventCountry "GER"]
[SourceTitle "playchess.com"]
[Source "ChessBase"]
[SourceQuality "1"]
[WhiteTeam "Rodewisch"]
[BlackTeam "Loeberitz"]
[TimeControl "40/5400+30:1800+30"]

{[%evp 16,76,12,12,12,22,31,41,56,24,41,41,60,38,73,74,67,73,90,66,83,80,85,76,89,89,90,64,61,70,46,59,152,166,122,45,63,16,35,0,39,17,95,93,162,131,252,262,252,249,226,74,59,42,45,0,0,0,68,0,0,0,58]} 1. e4 {[%emt 0:00:03]} c5 {[%emt 0:00:05]} 2. Nf3 {[%emt 0:00:05]} e6 {[%emt 0:00:09]} 3. d4 {[%emt 0:00:54]} cxd4 {[%emt 0:00:06]} 4. Nxd4 {[%emt 0:00:04]} Nf6 {[%emt 0:00:09]} 5. Nc3 {[%emt 0:00:36]} d6 {[%emt 0:00:19]} 6. g3 {[%emt 0:06:53]} Be7 {[%emt 0:03:38]} 7. Bg2 {[%emt 0:02:46]} O-O {[%emt 0:06:34]} 8. O-O {[%emt 0:00:09]} Nc6 {[%emt 0:12:47]} 9. Re1 {[%emt 0:07:58]} Nxd4 {[%emt 0:07:35] B80: Sicilian Scheveningen: 6 g3 and 6 Be3, including English Attack.} 10. Qxd4 {[%emt 0:00:11]} e5 {[%emt 0:01:04]} 11. Qd3 {[%emt 0:02:25]} h6 {[%emt 0:02:42] White is slightly better.} 12. Be3 {[%emt 0:02:37] [#]} a6 $146 {[%emt 0:08:53]} ({Predecessor:} 12... Be6 13. a4 a6 14. a5 Rc8 15. Na4 Rc6 16. Nb6 Ng4 17. c4 Nxe3 18. Rxe3 Rxb6 19. axb6 Qxb6 {1-0 (45) Damaso,R (2374)-Santos,A (2255) Sintra 2013}) 13. a4 {[%emt 0:10:47]} b6 {[%emt 0:02:16]} 14. Na2 {[%emt 0:11:03]} Bb7 {[%emt 0:10:37]} 15. c4 {[%emt 0:00:12]} a5 {[%emt 0:05:04]} 16. Nc3 {[%emt 0:02:31]} Bc6 {[%emt 0:04:40]} 17. Red1 {[%emt 0:02:36]} Qc7 {[%emt 0:03:41]} 18. b3 {[%emt 0:04:04]} Qb7 {[%emt 0:06:47]} 19. Ra2 {[%emt 0:05:27]} Ne8 {[%emt 0:04:48][%cal Bf6e8,Be8c7,Bc7a6,Ba6c5][%mdl 32]} 20. f4 {[%emt 0:06:46]} Nc7 {[%emt 0:05:04]} 21. Nd5 {[%emt 0:03:30]} Bxd5 {[%emt 0:00:57]} 22. exd5 {[%emt 0:00:06] Strongly threatening fxe5.} exf4 {[%emt 0:04:21]} 23. Bxf4 {[%emt 0:00:14]} Rfe8 {[%emt 0:02:53]} (23... Na6 $14) 24. Rf2 $1 $16 {[%emt 0:00:40][%cal Of4h6] And now Bxh6! would win. White is much more active.} Na6 {[%emt 0:01:53] [#]} 25. Qf3 {[%emt 0:07:20]} (25. Bxh6 $1 $16 {[%mdl 512]} Nc5 26. Qc2 $1) 25... Bf8 {[%emt 0:01:33]} 26. Rdf1 {[%emt 0:00:14]} (26. Be3 $14 {might be stronger.}) 26... Nc5 $11 {[%emt 0:01:36]} 27. Bh3 {[%emt 0:02:52]} (27. Bc1 {is interesting.} Re7 28. h4 Qc7 29. Bh3) 27... Qe7 {[%emt 0:02:27]} 28. Bf5 {[%emt 0:07:38] aiming for Bb1.} Qf6 {[%emt 0:00:37]} (28... g6 $11 29. Bc2 Bg7) 29. Bc2 $16 {[%emt 0:01:17]} g5 {[%emt 0:01:04]} (29... Ra7 $16) 30. Qg4 $18 {[%emt 0:02:31]} Bg7 {[%emt 0:00:27]} (30... Ne4 $16 {was necessary.}) 31. Bc1 {[%emt 0:02:14]} Qd4 {[%emt 0:00:31]} 32. Qf5 {[%emt 0:00:58]} Ra7 {[%emt 0:00:34]} 33. Bb1 $2 {[%emt 0:02:51]} (33. Kg2 $18 {is more deadly. Black must now prevent Qh7+.} Ne4 34. Re1 $1) 33... Re2 $16 {[%emt 0:00:28]} 34. Kg2 $1 {[%emt 0:04:32]} Rae7 {[%emt 0:00:11]} 35. Qc8+ {[%emt 0:00:31]} (35. h4 $5 gxh4 36. Kh3 Rxf2 37. Rxf2 $11) 35... Bf8 {[%emt 0:00:41]} (35... Re8 $11 36. Qf5 Qf6) 36. Qf5 $14 {[%emt 0:01:06][%csl Gb1][%cal Rf5h7] Dancing on a razor blade.} Bg7 $1 {[%emt 0:00:34]} (36... Qg7 37. Rxe2 Rxe2+ 38. Rf2 Rxf2+ 39. Qxf2 $16) 37. Qc8+ {[%emt 0:00:50]} (37. h4 $5 gxh4 {[#]} 38. Bxh6 $1 Rxf2+ 39. Rxf2 Bxh6 40. Qh7+ Kf8 41. Qxh6+ Ke8 42. Qh7 $14 (42. Qxd6 $2 h3+ 43. Kxh3 Qxf2 $19) (42. Qxh4 Qxh4 43. gxh4 Kf8 $14)) 37... Bf8 {[%emt 0:00:32]} 38. Qf5 {[%emt 0:00:21][%csl Gb1][%cal Rf5h7] Against Nd3} Bg7 $1 {[%emt 0:00:35] Weighted Error Value: White=0.15 (very precise) /Black=0.17 (very precise)} ({Don't do} 38... Qg7 39. Rxe2 Rxe2+ 40. Rf2 Rxf2+ 41. Qxf2 $16) 1/2-1/2

[Event "Frauenbundesliga 2021-22"]
[Site "Germany"]
[Date "2022.05.27"]
[Round "4.14"]
[White "Berzina, Ilze"]
[Black "Lubbe, Melanie"]
[Result "0-1"]
[ECO "B52"]
[WhiteElo "2180"]
[BlackElo "2308"]
[Annotator "TA"]
[PlyCount "80"]
[EventDate "2021.11.26"]
[EventType "team-tourn"]
[EventCountry "GER"]
[SourceTitle "playchess.com"]
[Source "ChessBase"]
[SourceQuality "1"]
[WhiteTeam "Loeberitz"]
[BlackTeam "Rodewisch"]
[TimeControl "40/5400+30:1800+30"]

{[%evp 20,80,8,8,31,5,47,45,68,58,83,83,77,77,70,68,115,83,113,87,114,118,149,132,196,191,237,237,222,190,158,152,147,148,147,93,91,89,227,217,218,220,225,127,130,106,108,104,100,66,115,-410,0,-256,299,260,248,222,305,283,238,-29998,-29999]} 1. e4 {[%emt 0:00:03]} c5 {[%emt 0:00:04]} 2. Nf3 {[%emt 0:00:09]} d6 {[%emt 0:00:05]} 3. Bb5+ {[%emt 0:00:09]} Bd7 {[%emt 0:00:04]} 4. Bxd7+ {[%emt 0:00:16]} Qxd7 {[%emt 0:00:05]} 5. c4 {[%emt 0:00:47]} Nf6 {[%emt 0:07:16]} 6. Nc3 {[%emt 0:00:32]} Nc6 {[%emt 0:00:27]} 7. d4 {[%emt 0:00:52]} cxd4 {[%emt 0:00:07]} 8. Nxd4 {[%emt 0:00:13]} g6 {[%emt 0:00:49]} 9. b3 {[%emt 0:01:11]} Bg7 {[%emt 0:00:52]} 10. Bb2 {[%emt 0:00:17]} O-O {[%emt 0:07:28]} 11. O-O {[%emt 0:00:46] [#]} h5 $146 {[%emt 0:16:05] B52: Sicilian: Moscow Variation with 3...Bd7.} ({Predecessor:} 11... Rac8 12. Re1 Rfd8 13. Nd5 Ne8 14. Qd2 e6 15. Ne3 Nf6 16. Qc2 d5 17. e5 Nh5 18. Rad1 Qe7 19. g3 Rb8 20. Bc3 Qa3 21. Rd3 a5 22. Red1 Qc5 23. Qd2 Rdc8 {½-½ (23) Yu,Y (2725)-Lu,S (2607) Shenzhen 2016}) 12. h3 {[%emt 0:10:34]} Kh7 {[%emt 0:06:17]} 13. Re1 {[%emt 0:02:36]} Nxd4 {[%emt 0:09:56] White is slightly better.} 14. Qxd4 {[%emt 0:01:29]} Ng4 {[%emt 0:01:11]} 15. Qd2 {[%emt 0:03:28]} Ne5 {[%emt 0:00:05]} 16. Nd5 {[%emt 0:09:29]} e6 {[%emt 0:03:37]} 17. Nc3 {[%emt 0:10:07]} Rfd8 {[%emt 0:05:36]} (17... Qd8 $14 {deserves consideration.}) 18. Rad1 {[%emt 0:01:43]} Qe7 {[%emt 0:01:54]} 19. Nb5 {[%emt 0:09:06]} a6 {[%emt 0:17:13]} 20. Nxd6 {[%emt 0:03:04]} b6 {[%emt 0:04:22][%cal Oe5c4]} 21. Ba3 {[%emt 0:07:47]} Nc6 {[%emt 0:10:19]} (21... g5 $16 {was worth a try.} 22. Qe3 Rab8) 22. Qf4 $18 {[%emt 0:16:59]} Rd7 {[%emt 0:01:47]} (22... f6 $142 23. Qe3 Qc7) 23. e5 {[%emt 0:03:28]} Qd8 {[%emt 0:02:31]} 24. Rd3 {[%emt 0:02:04]} Qc7 {[%emt 0:02:20]} 25. Rf3 {[%emt 0:02:07][%cal Rd6f7]} Kg8 {[%emt 0:00:06]} 26. g4 {[%emt 0:04:42] Black must now prevent gxh5.} h4 {[%emt 0:00:43]} 27. c5 {[%emt 0:01:50]} (27. Kg2 $142) 27... bxc5 $16 {[%emt 0:00:20]} 28. Bxc5 {[%emt 0:00:06]} Rad8 {[%emt 0:02:01]} (28... Qa5 $16 29. b4 Qxa2) 29. Kg2 $1 $18 {[%emt 0:05:59]} a5 {[%emt 0:00:35]} 30. a3 {[%emt 0:01:54] Inhibits Nb4.} Rb8 {[%emt 0:00:19]} 31. Nc4 {[%emt 0:00:20]} (31. b4 $18) 31... Rb5 {[%emt 0:00:41]} 32. Bd6 {[%emt 0:00:13]} Qb7 {[%emt 0:00:06]} 33. Ree3 {[%emt 0:00:50]} Rd5 {[%emt 0:00:16] And now ...Rd4 would win.} 34. Re4 {[%emt 0:00:45][%cal Be3e4,Be4c4,Bc4c8][%mdl 32] Inhibits Rd4.} Rd1 {[%emt 0:00:43]} (34... g5 $1 $14 {is superior.} 35. Qe3 (35. Qxg5 Nd4 $16) 35... a4) 35. Nb2 $2 {[%emt 0:00:34][%mdl 8192] [#]} (35. a4 $16 {and life is bright.}) 35... Rb1 $2 {[%emt 0:00:15]} ({Black should play} 35... R1xd6 $1 $19 {[%mdl 512]} 36. exd6 Bxb2) 36. Na4 $2 {[%emt 0:01:21][%mdl 8192] [#]} (36. Nc4 $11 {and White has nothing to worry.}) 36... Qb5 $4 {[%emt 0:01:55][%mdl 8192] The board is on fire.} (36... Nxe5 $1 $19 {[%mdl 512]} 37. Bxe5 Qb5) 37. Rc4 {[%emt 0:00:13] Strongly threatening Nc3.} Nxe5 {[%emt 0:00:00]} 38. Nc3 $1 {[%emt 0:00:15][%csl LRb1,LRb5]} Rxd6 {[%emt 0:00:24]} 39. Rc8+ {[%emt 0:00:39]} ({Weaker is} 39. Nxb1 Qd5 40. a4 (40. Rc8+ Kh7 $17) 40... f5 41. gxf5 g5 $15) 39... Kh7 {[%emt 0:00:08] ( -> ...Qf1+)} 40. g5 $4 {[%emt 0:00:35][%mdl 8192]} (40. Nxb5 $18 Rdd1 {[#]} 41. Qh2 $1 Rg1+ 42. Qxg1 Rxg1+ 43. Kxg1 Nxf3+ 44. Kg2 Ne1+ 45. Kf1) 40... Qf1+ {[%emt 0:00:30] Never resign too early!  Weighted Error Value: White=0.70/Black=0.65} 0-1

[Event "Frauenbundesliga 2021-22"]
[Site "Germany"]
[Date "2022.05.27"]
[Round "4.15"]
[White "Movsesian, Julia"]
[Black "Otikova, Elina"]
[Result "1/2-1/2"]
[ECO "A11"]
[WhiteElo "2313"]
[BlackElo "2090"]
[Annotator "TA"]
[PlyCount "82"]
[EventDate "2021.11.26"]
[EventType "team-tourn"]
[EventCountry "GER"]
[SourceTitle "playchess.com"]
[Source "ChessBase"]
[SourceQuality "1"]
[WhiteTeam "Rodewisch"]
[BlackTeam "Loeberitz"]
[TimeControl "40/5400+30:1800+30"]

{[%evp 9,82,-18,41,45,66,61,183,159,169,141,308,300,331,110,106,106,93,106,93,45,41,41,38,42,41,27,23,22,47,23,67,76,67,27,41,27,27,29,24,0,19,15,25,11,11,11,23,0,0,0,54,32,54,0,11,18,18,0,0,0,64,54,60,60,68,0,0,0,0,0,0,0,0,0,0]} 1. Nf3 {[%emt 0:00:04]} d5 {[%emt 0:00:17]} 2. g3 {[%emt 0:00:17]} c6 {[%emt 0:00:29]} 3. Bg2 {[%emt 0:00:04]} Bg4 {[%emt 0:00:27]} 4. c4 {[%emt 0:00:15]} Nd7 {[%emt 0:00:17]} 5. O-O {[%emt 0:07:25]} dxc4 {[%emt 0:04:44]} (5... Bxf3 $11 6. Bxf3 dxc4) 6. Na3 $1 $14 {[%emt 0:05:54] [#] A11: English Opening: 1...c6.} e5 $146 {[%emt 0:13:45]} ({Predecessor:} 6... g6 7. Nxc4 Bg7 8. d4 Ngf6 9. Nfe5 Be6 10. e4 O-O 11. Be3 Ng4 12. Nxg4 Bxc4 {0-1 (47) Tokhirjonova,G (2415)-Daggupati,B (2311) Charlotte 2020}) 7. Nxc4 {[%emt 0:00:59]} Qc7 {[%emt 0:00:15]} (7... e4 $14) 8. d4 $18 {[%emt 0:03:31][%cal Rd4e5] White is clearly better.} Bxf3 {[%emt 0:16:19]} 9. Bxf3 {[%emt 0:01:21] Strongly threatening dxe5.} Ngf6 $2 {[%emt 0:00:31]} (9... Bd6 $16 10. Qb3 Nb6) 10. dxe5 $1 {[%emt 0:03:19]} Nxe5 {[%emt 0:00:51]} 11. Nxe5 {[%emt 0:01:15]} (11. Bf4 $18 {and the rest is easy.} Nfd7 12. Bg4) 11... Qxe5 $16 {[%emt 0:00:08]} 12. Bf4 {[%emt 0:00:45]} Qe6 {[%emt 0:01:01] [#]} 13. Rc1 $1 {[%emt 0:05:39]} Be7 {[%emt 0:06:35] [#]} 14. Qa4 {[%emt 0:09:34]} (14. Rc3 $1 $16 {[%cal Rc3e3]}) 14... O-O $1 $14 {[%emt 0:00:27]} 15. Rc3 {[%emt 0:05:45][%cal Bc1c3,Bc3f3,Bf3b3][%mdl 32]} Nd5 {[%emt 0:03:02] Prevents Re3.} 16. Bxd5 {[%emt 0:04:29]} Qxd5 {[%emt 0:00:06]} 17. Rd1 {[%emt 0:03:32]} Qf5 {[%emt 0:01:23]} 18. Qb3 {[%emt 0:03:10]} Bf6 {[%emt 0:04:53]} 19. Rf3 {[%emt 0:05:28] Hoping for Bd6.} Qb5 {[%emt 0:05:06]} 20. Qxb5 {[%emt 0:10:27]} cxb5 {[%emt 0:00:40]} 21. Rb3 {[%emt 0:06:01] White is more active.} Rfe8 {[%emt 0:05:51]} 22. Rxb5 {[%emt 0:08:21]} Rxe2 {[%emt 0:00:26]} 23. Rxb7 {[%emt 0:01:30] Black must now prevent b4.} Rxb2 {[%emt 0:02:17]} 24. Rdd7 {[%emt 0:05:19]} Rxb7 {[%emt 0:01:36]} 25. Rxb7 $11 {[%emt 0:00:01][%mdl 4096] Endgame KRB-KRB} Bd4 {[%emt 0:05:28]} 26. Be3 {[%emt 0:00:18]} Bxe3 {[%emt 0:01:42]} 27. fxe3 {[%emt 0:00:01] KR-KR} g6 {[%emt 0:01:45]} 28. Kf2 {[%emt 0:00:04]} a5 {[%emt 0:01:36]} 29. a4 {[%emt 0:00:57]} h5 {[%emt 0:04:21]} (29... Rc8 $1 $11) 30. Kf3 {[%emt 0:01:29]} Kg7 {[%emt 0:00:50]} 31. Rb6 {[%emt 0:00:46]} (31. Rb5 $14) 31... f6 {[%emt 0:06:22]} 32. Rb7+ {[%emt 0:01:09]} Kh6 {[%emt 0:01:00]} 33. h4 {[%emt 0:03:31]} Ra6 {[%emt 0:00:11] Inhibits Rb6.} 34. Rb5 {[%emt 0:02:17]} Kg7 {[%emt 0:08:06]} (34... g5 $1 $11) 35. Kf4 {[%emt 0:00:10]} Kf7 {[%emt 0:00:16]} 36. e4 {[%emt 0:00:48]} Ke6 {[%emt 0:00:23]} 37. g4 {[%emt 0:00:26]} ({White should try} 37. Rd5 $14) 37... hxg4 {[%emt 0:01:00] The position is equal.} 38. Kxg4 {[%emt 0:00:01]} Ra8 {[%emt 0:01:02]} 39. h5 {[%emt 0:01:57]} gxh5+ {[%emt 0:00:15]} 40. Rxh5 {[%emt 0:00:02]} Rg8+ {[%emt 0:02:08]} 41. Kf4 {[%emt 0:30:09]} Rg5 {[%emt 0:31:10] Black defended with fortune.  Weighted Error Value: White=0.18 (very precise) /Black=0.24 (precise)} 1/2-1/2